bitfinex/quotes_ETHUSD_20250214
["timestamp","ask_amount","ask_price","bid_price","bid_amount"]
[1739547265407,0.7795,2707.4,2706.7,4.063922]
[1739547265593,0.7795,2707.7,2706.8,0.81279371]
[1739547265799,0.7795,2707.7,2707.3,3.69365]
[1739547266021,0.1489231,2707.9,2707.3,3.69365]
[1739547266225,0.1489231,2707.9,2707.6,3.69321]
[1739547266595,0.1489231,2707.9,2707.8,3.69303]
[1739547266931,0.1489231,2707.9,2707.8,0.820394]
[1739547267294,0.1489231,2707.9,2707.8,4.513424]
[1739547268797,0.1489231,2707.9,2707.8,5.10034641]
[1739547269133,0.1489231,2707.9,2707.8,5.063424]
[1739547270197,3.1e-06,2707.9,2707.8,16.828424]
[1739547270395,3.1e-06,2707.9,2707.8,17.646124]
[1739547270601,3.1e-06,2707.9,2707.8,17.631124]
[1739547271230,0.7795,2710.0,2708.2,0.8177]
[1739547271592,4.47028,2709.5,2708.3,13.16798555]
[1739547271879,4.47028,2709.5,2708.5,3.69208]
[1739547271880,3.69096,2709.4,2708.5,3.69208]
[1739547272031,3.69096,2709.4,2708.5,3.69195]
[1739547272032,3.69124,2709.2,2708.5,3.69195]
[1739547272232,3.69115,2709.2,2708.5,3.69202]
[1739547272570,0.738206,2709.2,2708.5,3.69202]
[1739547272735,4.429346,2709.2,2708.5,3.692]
[1739547272935,0.7795,2709.1,2708.3,3.69225]
[1739547273135,0.7795,2709.1,2708.5,3.69199]
[1739547273346,0.7795,2709.1,2708.6,3.69188]
[1739547273757,0.7795,2709.1,2708.8,3.69166]
[1739547274073,0.7795,2709.1,2708.6,3.69183]
[1739547274230,0.7795,2709.1,2708.7,3.6918]
[1739547274431,0.7795,2709.4,2708.9,3.69143]
[1739547274630,0.7795,2709.4,2709.0,3.69135]
[1739547274870,0.7795,2709.4,2708.7,3.69175]
[1739547275056,3.69099,2709.3,2708.7,4.430125]
[1739547275262,3.69117,2709.2,2708.7,0.738375]
[1739547275460,3.69117,2709.2,2708.5,3.692]
[1739547275632,3.69106,2709.3,2708.7,3.69177]
[1739547276054,0.7795,2709.4,2708.5,3.692]
[1739547276257,0.0075,2709.3,2708.3,3.69227]
[1739547276462,3.6913,2709.1,2708.5,3.69203]
[1739547276738,0.3787,2709.2,2708.7,3.69173]
[1739547276956,3.691,2709.3,2708.7,3.69173]
[1739547277143,7.38209,2709.3,2708.7,3.69173]
[1739547277357,3.0,2709.3,2708.7,3.69173]
[1739547277560,3.0,2709.3,2708.8,3.69159]
[1739547277764,0.7795,2709.4,2708.7,3.69173]
[1739547277964,3.69102,2709.3,2708.7,7.38345]
[1739547278168,3.7795,2709.4,2708.4,8.75]
[1739547278367,3.69108,2709.3,2708.6,3.69184]
[1739547278680,3.69129,2709.1,2708.6,3.69184]
[1739547278970,3.7795,2709.4,2708.7,3.69173]
[1739547279177,7.47041,2709.4,2708.8,3.69154]
[1739547279359,0.8285,2709.7,2709.2,3.69105]
[1739547279558,4.75259919,2710.6,2708.8,5.26353044]
[1739547279559,3.69024,2709.9,2709.3,3.69089]
[1739547279761,3.69024,2709.9,2709.3,3.72779608]
[1739547279946,3.69031,2709.8,2709.1,7.38231]
[1739547280146,3.69031,2709.8,2709.2,3.69109]
[1739547280382,3.69032,2709.8,2709.2,3.69102]
[1739547280680,3.69047,2709.7,2709.2,3.69102]
[1739547280976,3.69024,2709.9,2709.3,3.69091]
[1739547281184,0.8285,2710.0,2709.4,3.6908]
[1739547281352,3.69057,2709.7,2709.1,4.87118956]
[1739547281683,4.51959,2709.3,2708.7,12.44172]
[1739547281864,3.69118,2709.2,2708.7,12.44172]
[1739547282183,4.51959,2709.3,2708.7,12.44172]
[1739547282184,0.8285,2709.3,2708.7,12.44172]
[1739547282535,4.51949,2709.3,2708.8,3.69163]
[1739547282762,4.51962,2709.3,2708.8,4.49095909]
[1739547282961,3.69114,2709.2,2708.7,12.44178]
[1739547283743,3.69114,2709.2,2708.5,3.69198]
[1739547283938,3.69149,2709.0,2708.4,0.7967]
[1739547284144,3.69149,2709.0,2708.5,3.692]
[1739547284751,3.69149,2709.0,2708.5,4.430425]
[1739547284941,7.38299,2709.0,2708.5,4.430425]
[1739547285142,3.69153,2708.9,2708.5,4.430425]
[1739547285447,7.38299,2709.0,2708.5,3.692]
[1739547285647,3.69182,2708.7,2708.2,4.24246]
[1739547285846,3.69229,2708.4,2707.9,3.69282]
[1739547286097,3.69245,2708.3,2707.8,0.820394]
[1739547286299,0.8168,2708.7,2707.6,3.6933]
[1739547286300,4.50869,2708.7,2707.6,3.6933]
[1739547286606,3.98965,2708.9,2708.3,3.69225]
[1739547286811,7.6813,2708.9,2708.3,3.69225]
[1739547287010,3.98965,2708.9,2708.3,3.69225]
[1739547287381,3.69204,2708.6,2708.0,3.69264]
[1739547287570,3.69204,2708.6,2708.0,4.510544]
[1739547287771,3.98955,2708.9,2708.0,0.817844]
[1739547287972,3.98955,2708.9,2707.6,4.48626]
[1739547287973,3.69247,2708.3,2707.6,4.48626]
[1739547288224,0.8168,2708.4,2707.8,3.69295]
[1739547288432,3.69257,2708.2,2707.5,9.49610318]
[1739547288629,3.69284,2708.0,2707.4,3.69355]
[1739547288805,3.69284,2708.0,2707.5,4.142025]
[1739547288971,3.69284,2708.0,2707.5,0.448655]
[1739547289170,3.69298,2707.9,2707.5,0.448655]
[1739547289409,3.69298,2707.9,2707.3,4.48671]
[1739547289410,3.69289,2707.9,2707.3,4.48671]
[1739547289574,7.38568,2708.0,2707.4,3.69348]
[1739547289786,3.69272,2708.1,2707.5,3.69336]
[1739547290136,3.69272,2708.1,2707.4,3.69348]
[1739547290334,3.6929,2707.9,2707.4,3.69348]
[1739547290520,3.69266,2708.1,2707.5,3.69344]
[1739547290688,3.69266,2708.1,2707.5,3.69335]
[1739547291189,3.69235,2708.3,2707.4,0.89238303]
[1739547291416,3.69318,2707.7,2707.3,0.793]
[1739547291601,3.69318,2707.7,2707.1,3.69398]
[1739547291602,3.69336,2707.6,2707.1,3.69398]
[1739547291788,3.69331,2707.6,2707.1,3.6939]
[1739547291988,3.69331,2707.6,2707.1,5.912009]
[1739547292217,3.69331,2707.6,2707.1,3.6939]
[1739547292485,0.8168,2707.8,2707.2,0.03693488]
[1739547292717,3.69299,2707.9,2707.1,4.41798555]
[1739547292910,3.69298,2707.9,2707.3,3.69363]
[1739547293102,7.38595,2707.9,2707.4,0.369363]
[1739547293302,3.69297,2707.9,2707.4,4.062853]
[1739547293731,3.69303,2707.8,2707.4,0.369363]
[1739547293933,3.69297,2707.9,2707.4,0.369363]
[1739547294090,3.69325,2707.7,2707.2,3.69381]
[1739547294292,3.69325,2707.7,2707.2,7.38758]
[1739547294493,3.69325,2707.7,2707.3,3.6937]
[1739547294833,3.69312,2707.8,2707.3,3.6937]
[1739547295031,3.69298,2707.9,2707.3,7.38734]
[1739547295235,3.69304,2707.8,2707.4,0.738734]
[1739547295448,3.69347,2707.5,2707.0,0.793]
[1739547295625,0.8273,2707.6,2707.2,3.69382]
[1739547295794,0.8273,2707.6,2707.0,4.487]
[1739547295998,3.69351,2707.5,2707.0,4.487]
[1739547296226,3.69351,2707.5,2707.0,6.69621976]
[1739547296534,3.69351,2707.5,2707.0,3.00221976]
[1739547296737,0.8273,2707.6,2707.0,3.00221976]
[1739547297036,3.6931,2707.8,2707.2,3.69374]
[1739547297242,3.69338,2707.6,2707.1,3.73091548]
[1739547297401,3.69338,2707.6,2707.1,3.69398]
[1739547297718,3.69338,2707.6,2707.1,1.03903698]
[1739547297916,3.69346,2707.5,2707.1,1.03903698]
[1739547298139,3.69346,2707.5,2707.0,6.69631976]
[1739547298302,3.69338,2707.6,2707.0,6.69631976]
[1739547298507,3.69366,2707.4,2707.0,3.00221976]
[1739547298842,7.38696,2707.5,2707.0,5.90325976]
[1739547299040,4.52092,2707.4,2706.7,0.8159]
[1739547299203,3.6933,2707.6,2707.0,3.69412]
[1739547299402,3.6933,2707.6,2707.1,3.6939]
[1739547299714,3.69346,2707.5,2707.2,0.738802]
[1739547300103,3.69337,2707.6,2707.2,0.738802]
[1739547300323,0.8273,2707.7,2706.8,8.11227555]
[1739547300538,4.52048,2707.7,2706.7,0.8159]
[1739547300842,3.69361,2707.4,2706.9,3.69424]
[1739547300996,3.69344,2707.5,2707.0,3.69412]
[1739547301196,3.6929,2707.9,2707.2,3.69375]
[1739547301397,4.41798555,2708.8,2707.2,3.69375]
[1739547301398,5.857,2708.6,2707.4,4.41798555]
[1739547301596,5.857,2708.6,2708.0,3.69276]
[1739547301797,5.857,2708.6,2708.4,3.69211]
[1739547301998,5.857,2708.6,2708.1,3.0]
[1739547302302,3.69102,2709.3,2708.8,3.69159]
[1739547302523,3.69102,2709.3,2708.7,0.03691196]
[1739547302727,3.69102,2709.3,2708.6,3.69182]
[1739547303005,3.69131,2709.1,2708.5,0.8159]
[1739547303206,3.69131,2709.1,2708.5,5.03646333]
[1739547303539,3.69109,2709.3,2708.5,1.34444333]
[1739547303754,3.0,2709.3,2708.4,8.75]
[1739547304042,3.69202,2708.6,2708.4,8.75]
[1739547304259,3.6923,2708.4,2707.9,9.5059]
[1739547304464,7.38465,2708.4,2707.9,9.5059]
[1739547304607,3.6923,2708.4,2707.9,9.5059]
[1739547305753,3.6923,2708.4,2707.9,0.7559]
[1739547305952,3.69257,2708.2,2707.6,13.26511]
[1739547306267,7.38511,2708.2,2707.6,13.26511]
[1739547306555,3.69245,2708.3,2707.6,16.9583]
[1739547306753,3.69214,2708.5,2707.8,3.69293]
[1739547307723,3.69265,2708.1,2707.6,13.26517]
[1739547308053,1.14794144,2708.3,2707.7,3.69307]
[1739547308256,3.69214,2708.5,2707.8,1.695827]
[1739547308427,3.69244,2708.3,2707.8,1.695827]
[1739547308633,3.69258,2708.2,2707.6,13.26519]
[1739547308827,3.69244,2708.3,2707.6,13.26519]
[1739547309243,3.69244,2708.3,2707.6,13.26513]
[1739547309443,3.69127,2709.1,2708.0,4.41798555]
[1739547309615,3.69127,2709.1,2708.5,4.5139]
[1739547309814,3.69127,2709.1,2708.6,0.03691301]
[1739547310079,3.69148,2709.0,2708.5,0.8219]
[1739547310291,3.69127,2709.1,2708.5,4.51387]
[1739547310421,5.856,2709.4,2708.7,3.6918]
[1739547310762,5.856,2709.4,2708.9,3.69142]
[1739547310980,9.54688,2709.4,2708.9,3.69142]
[1739547311193,5.856,2709.4,2708.9,3.69142]
[1739547311490,3.0,2709.3,2708.6,8.75]
[1739547311794,7.38327,2708.9,2708.6,8.75]
[1739547311919,3.69106,2709.3,2708.6,8.75]
[1739547312119,5.856,2709.4,2708.9,3.69144]
[1739547312361,3.69112,2709.2,2708.7,0.95719]
[1739547312577,3.69135,2709.1,2708.6,8.75]
[1739547312870,0.7537,2709.0,2708.6,8.75]
[1739547313021,3.69264,2708.1,2707.9,0.8219]
[1739547313338,3.69264,2708.1,2707.6,3.69323]
[1739547313670,3.69239,2708.3,2707.7,1.326513]
[1739547313880,0.7537,2708.7,2707.7,5.019663]
[1739547314015,3.69194,2708.6,2707.8,3.69295]
[1739547314217,3.69235,2708.3,2707.8,3.69303]
[1739547314414,1.0517,2708.7,2708.0,0.55]
[1739547314415,4.44559,2708.7,2708.0,0.55]
[1739547314619,3.69211,2708.5,2708.0,4.24265]
[1739547314822,0.298,2708.8,2708.2,3.69248]
[1739547315061,3.9897,2708.8,2708.2,3.69248]
[1739547315221,0.298,2708.8,2708.1,0.8219]
[1739547315529,0.298,2708.8,2707.8,0.8219]
[1739547315530,3.298,2708.8,2707.8,0.8219]
[1739547315725,3.69231,2708.4,2707.8,4.51485]
[1739547315925,3.69251,2708.2,2707.8,0.8219]
[1739547316556,3.69229,2708.4,2707.8,4.51483]
[1739547316757,3.69229,2708.4,2707.8,6.3432853]
[1739547316937,3.69236,2708.3,2707.8,6.3432853]
[1739547317322,6.9897,2708.8,2707.9,3.69276]
[1739547317323,3.69208,2708.5,2707.9,3.69276]
[1739547320786,4.44476,2709.3,2708.4,2.148328]
[1739547320941,5.856,2709.4,2709.1,3.69124]
[1739547321685,3.69115,2709.2,2708.7,12.4417]
[1739547321886,3.69167,2708.8,2708.7,8.75]
[1739547322071,3.69147,2709.0,2708.4,3.69209]
[1739547322275,3.69153,2708.9,2708.4,3.69209]
[1739547322485,3.69123,2709.2,2708.4,3.69209]
[1739547322686,3.69144,2709.0,2708.5,3.69206]
[1739547322995,7.38274,2709.1,2708.5,3.69196]
[1739547323218,7.50078,2709.3,2708.7,3.69178]
[1739547323375,5.856,2709.4,2708.5,1.3432]
[1739547323684,5.856,2709.4,2709.0,3.69128]
[1739547324110,5.856,2709.4,2709.0,3.69132]
[1739547324594,5.856,2709.4,2709.2,3.69102]
[1739547324788,5.856,2709.4,2709.1,0.7932]
[1739547326083,3.69074,2709.5,2709.1,0.7932]
[1739547326282,0.8097,2709.4,2708.9,12.44152]
[1739547326484,3.691,2709.3,2708.9,8.75]
[1739547326688,3.69074,2709.5,2708.9,9.67602842]
[1739547326897,3.69074,2709.5,2709.0,3.69127]
[1739547327076,3.69078,2709.5,2708.9,9.67602842]
[1739547327486,3.69106,2709.3,2708.9,9.67602842]
[1739547328004,3.69106,2709.3,2708.9,8.75]
[1739547328170,3.69093,2709.4,2708.8,3.69158]
[1739547328352,0.8097,2709.7,2708.6,4.2323799]
[1739547328561,3.69136,2709.1,2708.6,4.2323799]
[1739547328759,3.69136,2709.1,2708.6,0.5404499]
[1739547329006,3.0,2709.4,2708.5,0.7932]
[1739547329172,3.0,2709.4,2708.1,9.5432]
[1739547329173,3.69215,2708.5,2708.1,9.5432]
[1739547329501,4.5016,2708.7,2708.1,4.48574]
[1739547329698,3.6919,2708.7,2708.1,0.7932]
[1739547329869,3.69153,2708.9,2708.0,3.69271]
[1739547330072,3.69222,2708.4,2708.0,0.55]
[1739547330369,3.69197,2708.6,2707.9,3.6928]
[1739547330558,3.69197,2708.6,2708.1,3.69261]
[1739547330753,3.69197,2708.6,2708.0,3.69266]
[1739547330957,8.163463,2708.8,2708.0,4.141326]
[1739547331198,4.471663,2708.8,2708.3,3.69233]
[1739547331532,4.79917,2709.0,2708.1,0.55]
[1739547331533,4.50117,2709.0,2708.1,0.55]
[1739547331823,3.69121,2709.2,2708.5,3.69194]
[1739547332100,3.69121,2709.2,2708.5,3.69208]
[1739547332101,3.69119,2709.2,2708.5,3.69208]
[1739547332260,0.8097,2709.6,2708.8,3.69167]
[1739547332599,0.10159604,2709.5,2709.0,3.69126]
[1739547332959,0.10159604,2709.5,2709.1,3.69126]
[1739547333263,9.54545,2709.7,2709.2,3.69104]
[1739547333465,0.10456996,2709.4,2709.2,4.43296086]
[1739547333733,5.855,2709.7,2709.4,3.69081]
[1739547333864,5.855,2709.7,2709.4,4.48396]
[1739547334066,5.855,2709.7,2709.2,4.43293086]
[1739547334386,9.54552,2709.7,2709.3,0.44329309]
[1739547334583,5.855,2709.7,2709.3,0.44329309]
[1739547334803,5.855,2709.7,2709.2,4.43293086]
[1739547335009,9.54545,2709.7,2709.2,4.43293086]
[1739547335726,5.855,2709.7,2709.2,7.38205]
[1739547335871,5.855,2709.7,2709.4,3.69082]
[1739547336205,0.10518311,2709.6,2709.4,3.69078]
[1739547336367,0.10518311,2709.6,2709.5,3.69071]
[1739547336709,0.7594,2710.2,2709.5,4.428859]
[1739547336920,0.7594,2710.2,2709.8,3.69019]
[1739547337097,0.10569726,2710.1,2710.0,3.69003]
[1739547337409,0.1489231,2710.6,2710.5,3.68935]
[1739547337410,3.1e-06,2710.6,2710.5,3.68935]
[1739547337735,3.1e-06,2710.6,2710.5,8.386485]
[1739547338065,3.1e-06,2710.6,2710.5,17.151485]
[1739547338372,4.41798555,2712.4,2710.5,17.151485]
[1739547338373,0.7594,2712.3,2711.4,0.7782]
[1739547338706,0.7594,2712.3,2711.6,7.37548]
[1739547338707,4.44631,2712.3,2711.6,7.37548]
[1739547338911,4.44631,2712.3,2711.6,3.68776]
[1739547339078,3.68738,2712.0,2711.4,8.75]
[1739547339282,0.7594,2712.8,2711.8,3.68758]
[1739547339481,3.68639,2712.7,2711.9,3.68734]
[1739547339683,0.7594,2712.6,2711.2,0.7782]
[1739547340006,0.7594,2712.0,2711.5,3.68797]
[1739547340206,0.7594,2712.0,2711.2,0.7782]
[1739547340207,0.7594,2712.0,2711.3,3.68823]
[1739547340426,0.07301153,2711.9,2711.4,3.68804]
[1739547340623,0.07301153,2711.9,2711.3,3.68823]
[1739547340624,0.07301153,2711.9,2711.5,0.03687788]
[1739547340936,0.07301153,2711.9,2711.8,4.46578]
[1739547341154,0.7594,2712.7,2712.2,3.687]
[1739547341641,0.07372294,2712.6,2712.2,3.687]
[1739547341795,0.07372294,2712.6,2712.0,3.68731]
[1739547342671,0.07372294,2712.6,2711.8,3.68754]
[1739547342876,3.68663,2712.5,2711.8,3.68754]
[1739547343101,0.37603529,2712.4,2711.8,3.68754]
[1739547343269,0.44955299,2712.4,2711.8,3.68754]
[1739547343468,0.0735177,2712.4,2711.8,3.68754]
[1739547343706,0.0735177,2712.4,2711.9,3.68744]
[1739547343912,4.44577,2712.7,2711.9,3.68744]
[1739547344419,0.07310407,2712.6,2711.9,3.68744]
[1739547344573,3.75972407,2712.6,2711.9,7.37479]
[1739547344772,0.82054941,2712.5,2711.9,3.68735]
[1739547345010,0.0728988,2712.4,2711.9,3.68735]
[1739547345810,3.68699,2712.3,2711.6,3.68784]
[1739547346015,0.7594,2712.2,2711.5,3.68789]
[1739547346235,0.07369667,2712.3,2712.1,3.68717]
[1739547346434,3.6862,2712.9,2712.1,3.68717]
[1739547346435,0.7594,2712.5,2712.1,3.68717]
[1739547346730,0.7594,2712.5,2712.2,3.68696]
[1739547346892,3.7594,2712.8,2712.2,3.68696]
[1739547347086,0.668618,2712.7,2712.2,3.68696]
[1739547347391,0.668618,2712.7,2712.0,4.41798555]
[1739547347392,0.07418483,2712.7,2712.4,3.68677]
[1739547347593,0.07418483,2712.7,2712.6,3.6865]
[1739547347831,0.7594,2712.8,2712.6,3.6865]
[1739547348127,3.68577,2713.2,2712.6,3.6865]
[1739547348128,3.7594,2713.1,2712.6,3.6865]
[1739547348629,3.76051563,2713.0,2712.4,3.68665]
[1739547348931,0.45199156,2712.9,2712.5,3.68659]
[1739547349148,0.07448563,2713.0,2712.5,3.68659]
[1739547349372,0.07428041,2712.8,2712.5,3.68659]
[1739547349504,0.07438303,2712.9,2712.4,3.68665]
[1739547349860,0.07428041,2712.8,2712.3,4.41798555]
[1739547350140,0.1539231,2713.4,2713.0,3.68589]
[1739547350557,0.1539231,2713.4,2712.9,4.41798555]
[1739547350763,0.07212361,2713.3,2713.0,3.68588]
[1739547350939,0.07212361,2713.3,2712.4,1.58870156]
[1739547350940,3.75777361,2713.3,2712.7,3.68633]
[1739547351097,3.68603,2713.0,2712.5,8.75]
[1739547351435,0.44044317,2712.9,2712.5,8.75]
[1739547351619,3.75797017,2712.9,2712.5,8.75]
[1739547351834,0.07184017,2712.9,2712.5,8.75]
[1739547352006,0.07184017,2712.9,2712.5,12.43663]
[1739547352205,0.07184017,2712.9,2712.7,3.68624]
[1739547352403,4.46383,2713.2,2712.6,3.6865]
[1739547352630,0.07204537,2713.1,2712.7,3.68636]
[1739547352929,0.07204537,2713.1,2712.6,3.6865]
[1739547352930,3.75795537,2713.1,2712.6,3.6865]
[1739547353146,3.75795537,2713.1,2712.5,12.43658]
[1739547354037,0.07204537,2713.1,2712.6,3.68641]
[1739547354235,0.07204537,2713.1,2712.7,3.68628]
[1739547354541,0.07204537,2713.1,2712.8,3.68621]
[1739547354838,3.6865,2712.6,2712.5,8.75]
[1739547355038,3.6865,2712.6,2712.0,4.41798555]
[1739547355039,3.68661,2712.6,2712.1,0.8267]
[1739547355340,3.68681,2712.4,2711.7,17.68230555]
[1739547355641,3.6873,2712.1,2711.5,12.43791]
[1739547355825,3.75820438,2712.3,2711.7,3.68764]
[1739547355826,7.44519438,2712.3,2711.7,3.68764]
[1739547356024,7.44519438,2712.3,2711.5,8.75]
[1739547356025,0.07122438,2712.3,2711.5,8.75]
[1739547356213,3.68732,2712.0,2711.5,3.68797]
[1739547356409,0.07063738,2711.9,2711.6,3.68774]
[1739547356597,3.68713,2712.2,2711.7,3.68764]
[1739547356798,0.07059368,2712.1,2711.8,3.6875]
[1739547357034,0.7781,2712.5,2711.7,4.45485849]
[1739547357253,0.7781,2712.8,2712.4,3.68677]
[1739547357515,0.7781,2712.8,2712.4,4.41798555]
[1739547357665,4.46435,2712.8,2712.3,3.68687]
[1739547357983,0.7781,2712.8,2711.9,8.75]
[1739547358186,7.37398,2712.3,2711.9,8.75]
[1739547358387,3.68698,2712.3,2711.9,8.75]
[1739547358587,0.8487646,2712.2,2711.9,8.75]
[1739547358766,0.8487646,2712.2,2711.7,3.68764]
[1739547359147,0.0706646,2712.2,2711.7,1.82323256]
[1739547359346,0.0706646,2712.2,2711.9,3.68738]
[1739547359552,3.68672,2712.5,2711.9,3.68738]
[1739547359962,0.7781,2712.6,2711.6,8.75]
[1739547359963,3.68716,2712.2,2711.6,8.75]
[1739547360290,3.75745918,2712.1,2711.6,3.68785]
[1739547360430,0.07020918,2712.1,2711.7,3.68768]
[1739547360634,0.07020918,2712.1,2711.8,3.68757]
[1739547360867,3.68719,2712.1,2711.6,3.68776]
[1739547361193,3.68719,2712.1,2711.5,5.24468555]
[1739547361194,3.68776,2711.7,2711.3,0.75040421]
[1739547361449,0.06964628,2711.6,2710.9,8.93344555]
[1739547361631,3.75757628,2711.6,2711.1,3.68847]
[1739547361788,3.68793,2711.6,2711.1,3.68847]
[1739547361989,3.68813,2711.4,2710.9,5.24468555]
[1739547362191,0.06893694,2711.3,2710.9,10.19566211]
[1739547362450,3.68748,2711.9,2710.6,13.99468555]
[1739547362451,3.68848,2711.2,2710.6,13.99468555]
[1739547362656,4.46626,2711.4,2710.6,0.8267]
[1739547362947,0.06883419,2711.2,2710.7,3.68908]
[1739547363086,3.68843,2711.2,2710.6,4.41798555]
[1739547363286,0.7781,2711.4,2710.3,13.18905826]
[1739547363287,3.68885,2710.9,2710.3,10.32621826]
[1739547363650,3.68918,2710.7,2710.1,3.68989]
[1739547363848,3.68918,2710.7,2710.0,5.24468555]
[1739547363849,3.68922,2710.6,2710.0,5.24468555]
[1739547364025,0.06805936,2710.6,2710.0,8.93470555]
[1739547364232,0.06805936,2710.6,2710.1,0.03689345]
[1739547364387,4.46668,2711.1,2710.4,3.68949]
[1739547364588,0.446668,2711.0,2710.5,3.68932]
[1739547364793,4.46672,2711.1,2710.3,8.10755555]
[1739547365014,3.68889,2710.9,2710.3,8.10755555]
[1739547365359,0.06822125,2710.8,2710.3,4.41798555]
[1739547365517,3.68925,2710.6,2710.0,4.41798555]
[1739547365902,3.6895,2710.4,2709.8,3.69028]
[1739547366105,3.68974,2710.3,2709.7,8.93509555]
[1739547366349,0.06655205,2710.3,2709.7,8.93509555]
[1739547366720,3.68979,2710.2,2709.7,8.10839555]
[1739547366917,3.75623919,2710.2,2709.7,4.41798555]
[1739547367157,0.06644919,2710.2,2709.5,0.738149]
[1739547367341,3.68991,2710.1,2709.7,0.9488149]
[1739547367539,3.68976,2710.2,2709.7,4.6392249]
[1739547367745,3.75659641,2710.0,2709.4,8.10882555]
[1739547367900,3.69021,2709.9,2709.4,4.41798555]
[1739547368104,0.06632942,2709.9,2709.6,3.69057]
[1739547368333,0.06632942,2709.9,2709.8,3.6903]
[1739547368605,0.8099,2711.3,2710.5,0.7509]
[1739547368839,0.06581091,2711.2,2710.7,3.68898]
[1739547369004,3.68861,2711.1,2710.6,4.41798555]
[1739547369212,0.06287048,2711.0,2710.5,4.44017]
[1739547369514,0.06287048,2711.0,2710.6,3.6892]
[1739547369746,3.75154048,2711.0,2710.6,1.687937]
[1739547369950,0.06287048,2711.0,2710.6,8.10712555]
[1739547370110,3.75162048,2711.0,2710.4,12.43942]
[1739547370309,3.68875,2711.0,2710.4,12.43942]
[1739547370543,0.06253708,2710.9,2710.4,12.43942]
[1739547370746,3.68901,2710.8,2710.4,8.75]
[1739547371049,3.68901,2710.8,2710.1,3.68982]
[1739547371050,4.56111883,2710.7,2710.1,3.68982]
[1739547371261,3.68956,2710.4,2710.0,4.41798555]
[1739547371453,4.49905,2710.7,2710.0,8.10791555]
[1739547371649,1.259805,2710.7,2709.9,9.5009]
[1739547371947,3.68944,2710.5,2709.9,13.19105]
[1739547372303,0.06123047,2710.4,2709.9,9.5009]
[1739547372526,0.06123047,2710.4,2710.3,8.65760555]
[1739547372723,4.49862,2711.0,2710.3,8.65760555]
[1739547372947,4.49862,2711.0,2710.3,4.23962]
[1739547373368,3.68895,2710.8,2710.2,3.68975]
[1739547373522,3.68897,2710.8,2710.2,3.68975]
[1739547373719,3.68956,2710.4,2709.9,9.5009]
[1739547374070,3.75098059,2710.3,2709.9,8.75]
[1739547374264,3.68977,2710.2,2709.9,8.75]
[1739547374564,0.06155167,2710.2,2709.9,8.75]
[1739547374734,3.75131167,2710.2,2709.9,8.75]
[1739547374934,0.06155167,2710.2,2709.9,8.75]
[1739547375267,3.68918,2710.7,2709.9,8.75]
[1739547375268,0.8099,2710.7,2709.9,8.75]
[1739547375557,3.68936,2710.5,2710.0,0.03689692]
[1739547375766,0.8099,2710.7,2710.0,0.03689692]
[1739547375767,4.49905,2710.7,2710.0,8.30667769]
[1739547375967,0.06259719,2710.4,2710.0,8.30666769]
[1739547376163,3.68942,2710.5,2710.0,4.61672769]
[1739547376459,3.75215357,2710.4,2709.9,8.75]
[1739547376691,0.06266357,2710.4,2709.9,8.75]
[1739547376823,3.68985,2710.2,2709.9,8.75]
[1739547377018,0.06223976,2710.1,2709.9,8.75]
[1739547377220,0.06223976,2710.1,2709.5,5.25]
[1739547377221,3.69004,2710.0,2709.5,8.75]
[1739547377448,0.06211766,2709.9,2709.5,13.069167]
[1739547377661,0.8099,2710.1,2709.7,3.0]
[1739547377852,0.06187056,2709.8,2709.6,3.0]
[1739547378044,3.69045,2709.7,2709.4,8.75]
[1739547378365,0.06172258,2709.6,2709.3,4.44189]
[1739547378549,0.06172258,2709.6,2709.4,8.75]
[1739547378738,3.69025,2709.9,2709.4,12.44083]
[1739547378937,0.06150936,2709.5,2709.4,8.75]
[1739547379136,3.69003,2710.0,2709.4,8.75]
[1739547379358,4.140019,2710.0,2709.4,8.75]
[1739547379668,3.75245223,2709.9,2709.4,8.75]
[1739547380234,3.69039,2709.8,2709.4,8.75]
[1739547380567,0.06112883,2709.7,2709.4,8.75]
[1739547380959,3.69045,2709.7,2709.4,8.75]
[1739547381278,0.06082727,2709.6,2709.4,8.75]
[1739547381570,3.69039,2709.8,2709.4,8.75]
[1739547381767,0.06072441,2709.5,2709.4,3.0]
[1739547381929,3.69039,2709.8,2709.4,3.0]
[1739547382129,0.06072441,2709.5,2709.4,6.99085]
[1739547382339,3.68962,2710.3,2709.6,3.69049]
[1739547382762,3.75127467,2710.2,2709.6,3.69049]
[1739547383244,4.45024,2709.8,2709.5,8.75]
[1739547383464,3.75139051,2709.7,2709.5,8.75]
[1739547383654,3.75139051,2709.7,2709.2,3.7827]
[1739547383851,3.69089,2709.4,2709.0,8.75]
[1739547384146,0.060299,2709.3,2709.0,8.75]
[1739547384887,0.06010092,2709.2,2709.0,8.75]
[1739547385271,4.49052,2709.2,2709.0,8.75]
[1739547385584,0.05955659,2709.1,2709.0,8.75]
[1739547385744,0.05955659,2709.1,2708.6,7.3837]
[1739547386083,0.05955659,2709.1,2708.6,1.69532]
[1739547386377,0.05955659,2709.1,2708.7,3.69171]
[1739547386551,0.05955659,2709.1,2708.8,0.03691453]
[1739547386754,3.6908,2709.5,2708.9,3.69146]
[1739547386755,1.0973,2709.5,2708.9,3.69146]
[1739547386958,0.05956054,2709.0,2708.9,3.69145]
[1739547387143,1.0973,2709.5,2708.8,3.69166]
[1739547387338,1.0973,2709.5,2708.6,0.55]
[1739547387566,1.0973,2709.5,2709.0,3.69133]
[1739547387768,0.7993,2709.9,2709.3,3.69091]
[1739547387974,0.05997209,2709.4,2709.3,3.69091]